Workbook

Sheet Cvr
A5: Gandaki Province Government
A6: Ministry of Physical Infrastructure Development and Transport Management
A7: Infrastructure Development Directorate
A8: Infrastructure Development Office
A9: Kushma, Parbat
A16: INTERIM PAYMENT CERTIFICATE #1
A24: Contract No.: IDO/PAR/NCB/W/20/081-82
A25: Construction / Upgrading of …...... Road
A26: …..... - 2, Kaski
A31: 2081 FALGUN
C34: Submitted By: | H34: Submitted to:
C35: …. Construction (P.) Ltd. | H35: Infrastructure Development Office
C36: Pokhara, Kaski | H36: Kaksi, Pokhara

Sheet Sfrs
A1: गण्डकी प्रदेश सरकार
A2: भौतिक पूर्वाधार विकास तथा यातायात व्यवस्था मन्त्रालय
A3: पूर्वाधार विकास निर्देशनालय
A4: पूर्वाधार विकास कार्यालय
A5: पोखरा कास्की
A6: कार्यालय कोड नं.: ३३७०१४२०१४
A8: भुक्तानी कारोबारको सिफारिस पत्र
A10: श्री आर्थिक प्रशासन शाखा,
A11: देहायको कारोबारको भुक्तानी तथा लेखाङ्कनका लागी सिफारिस गरिएको छ ।
A13: क्र. सं. | B13: कारोवारको विवरण | C13: पुष्ट्यार्इँ गर्ने कागजातको विवरण | D13: कारोबार रकम | E13: निर्णय गर्ने पदाधिकारीको नाम | F13: निर्णय मिति
A14: 1 | B14: 2 | C14: 3 | D14: 4 | E14: 5 | F14: 6
A15: 1 | B15: ____ सडकको पहिलो रनिङ बिल भुक्तानी | C15: नापी सम्बन्धी पानाहरू, ठेक्का सम्बन्धी बिल, प्रयोगशाला परिक्षण प्रतिवेदन | D15: =TSB!J38 -> 0 | E15: नाम लेख्ने | F15: २०८१/...../...
B16: जम्मा | D16: =D15 -> 0
A17: उपर्युक्त कारोबारको भुक्तानीको लागी ब.उ.शी.नं ३३७०१०१२, खर्च शीर्षक नं. ३११५१, क्रियाकलाप नम्बर ...................., कम्पोनेन्ट न. ................. को लागि व्यवस्था भएको रु. ........... बाट भुक्तानी गर्न सिफारिस गर्दछौं।
A22: सिफारिस गर्ने:
A26: ….................. | C26: ….................. | F26: …..................
A27: नाम लेख्ने | C27: नाम लेख्ने | F27: नाम लेख्ने
A28: अधिकृत (छैटौँ) | C28: सडक इन्जिनियर | F28: इन्जिनियर
A29: सम्बद्ध शाखा / महाशाखा: प्राविधिक शाखा
A30: २०८१/...../... | C30: २०८१/...../..... | F30: २०८१/...../.....
A32: आर्थिक प्रशासन शाखा | D32: सिफारिस पत्रमाथिको कारवाहीको विवरण
A35: …..................
A36: प्राप्त गर्ने वा बुझिलिने:
A37: अधिकृत (छैटौँ) - लेखा
A38: २०८१/...../.....
A40: उद्देश्यः आर्थिक प्रशासन शाखामा अन्य महाशाखा / शाखाहरुबाट आवश्यक कागजात सहित भुक्तानी तथा पेस्की फर्छ्यौट गर्न सिफारिस गर्नु यो फारामको उद्देश्य हो।
A43: फाराम भर्ने तरिकाः
A44: 1 | B44: महल १ मा क्रम संख्या लेखिन्छ । क्रम संख्या १ देखि शुरू भर्इ सिलसिलेवारमा लेख्नुपर्छ ।
A45: 2 | B45: महल २ मा कारोबारको विवरणमा सञ्चालन भएका कार्यक्रम/क्रियकलापको संक्षिप्त विवरण लेख्नु पर्दछ ।
A46: 3 | B46: महल ३ मा पुष्ट्याइ गर्ने कागजातको विवरण जस्तैः स्वीकृत टिप्पणी फाइल, विलविजक, निवेदन लगायतका कागजातका विवरण लेख्नु पर्दछ ।
A47: 4 | B47: महल ४ मा भुक्तानी गर्न सिफारिस गरिएको कुल रकम लेख्नुपर्छ ।
A48: 5 | B48: महल ५ र ६ मा कार्यक्रम गर्न निर्णय गर्ने पदाधिकारीको नाम र निर्णय मिति लेख्नु पर्दछ ।
A49: 6 | B49: एक भन्दा धेरै कारोबार भएमा क्रमिक रूपमा लेख्दै जानुपर्छ ।
A50: 7 | B50: जम्मा हरफभन्दा तल रहेको भाषामा बजेट शीर्षक नं., खर्च शीर्षक नं., कार्यक्रम/क्रियकलाप र कम्पोनेन्टको नाम र रकम उल्लेख गर्नुपर्दछ ।

Sheet PA
A1: Gandaki Province Government
A2: Ministry of Physical Infrastructure Development and Transport Management
A3: Infrastructure Development Directorate
A4: Infrastructure Development Office
A5: Pokhara, Kaski
A7: PRICE ADJUSTMENT - IPC#2
A9: Project:
A10: Contract No.:
A12: Price Adjustment Factor (Pn) = A + b x Ln /L0 + c x Mn/M0 + d x En/E0, where | N12: BS | O12: AD
B13: A = Constant representing non-adjustable portion | F13: 0.15 | H13: Date of agreement | N13: 2081/02/31 | O13: =bs2ad(N13) -> 2024-06-13
B14: b = Coefficient representing labour | F14: 0.25 | H14: Intended date of completion during agreement | N14: =ad2bs(O14) -> 2083-02-29 | O14: =O13+365*2-1 -> 2026-06-12
B15: c = Coefficient representing materials | F15: 0.45 | H15: Date at which the price index is fixed (30 days prior to intended date of completion) | N15: =ad2bs(O15) -> 2083-01-30 | O15: =O14-30 -> 2026-05-13
B16: d = Coefficient representing equipment usage | F16: 0.15
B17: L0 = Base index corresponding to labour | F17: Ln = Index corresponding to labour prevailing on the day 30 days prior to the date of concerned IPC
B18: M0 = Base index corresponding to materials | F18: Mn = Index corresponding to materials prevailing on the day 30 days prior to the date of concerned IPC
B19: E0 = Base index corresponding to equipment usage | F19: En = Index corresponding to equipment usage prevailing on the day 30 days prior to the date of concerned IPC
A21: S.N. | B21: Description | C21: Last Date of Bid Submission / Initial intended date of completion / Date of IPC (BS) | D21: Date (AD) | E21: Date 30 days prior | F21: Month of which the price index is applicable | G21: Bill Amount in which Price Adjustment is Applicable without PS and VAT | H21: Advance Payment Deduction | I21: Amount In Which Price Adjustment Is Applicable | J21: L0 /Ln from SWRI | K21: M0 / Mn from WPI | L21: E0 / En from WPI | M21: Pn | N21: Adopted Pn | O21: Price Adjustment | P21: Remarks
A22: 1 | B22: Base indices | C22: =ad2bs(D22) -> 2080-12-01 | D22: 2024-03-14 | E22: =D22-30 -> 2024-02-13 | F22: =IF(TODAY()>=E22,IF(DAY(E22)<=15,TEXT(EDATE(E22,-1),"yyyy mmm")&"/"&TEXT(E22,"mmm"),TEXT(E22,"yyyy mmm")&"/"&TEXT(EDATE(E22,1),"mmm")),"30 days prior to intended date of completion not reached") -> 2024 Jan/Feb | J22: =IF(VLOOKUP(F22,Indices!$A$2:$E$220,5,FALSE)="Not published", INDEX(Indices!$E$2:$E$220, MATCH("Not published", Indices!$E$2:$E$220, 0)-1), VLOOKUP(F22,Indices!$A$2:$E$220,5,FALSE)) -> 592.290479 | K22: =IF(VLOOKUP(F22,Indices!$A$2:$E$220,4,FALSE)="Not published", INDEX(Indices!$D$2:$D$220, MATCH("Not published", Indices!$D$2:$D$220, 0)-1), VLOOKUP(F22,Indices!$A$2:$E$220,4,FALSE)) -> 135.33298 | L22: =IF(VLOOKUP(F22,Indices!$A$2:$E$220,2,FALSE)="Not published", INDEX(Indices!$D$2:$D$220, MATCH("Not published", Indices!$D$2:$D$220, 0)-1), VLOOKUP(F22,Indices!$A$2:$E$220,2,FALSE)) -> 136.46172 | M22: =IF(E22>TODAY(),"Not Applicable",$F$13+$F$14*J22/$J$22+$F$15*K22/$K$22+$F$16*L22/$L$22) -> 1
A23: =A22+1 -> 2 | B23: Frozen indices | C23: =N14 -> 2083-02-29 | D23: =bs2ad(C23) -> 2026-06-12 | E23: =D23-30 -> 2026-05-13 | F23: =IF(TODAY()>=E23,IF(DAY(E23)<=15,TEXT(EDATE(E23,-1),"yyyy mmm")&"/"&TEXT(E23,"mmm"),TEXT(E23,"yyyy mmm")&"/"&TEXT(EDATE(E23,1),"mmm")),"30 days prior to intended date of completion not reached") -> 30 days prior to intended date of completion not reached | J23: =IF(VLOOKUP(F23,Indices!$A$2:$E$220,5,FALSE)="Not published", INDEX(Indices!$E$2:$E$220, MATCH("Not published", Indices!$E$2:$E$220, 0)-1), VLOOKUP(F23,Indices!$A$2:$E$220,5,FALSE)) -> Not Applicable | K23: =IF(VLOOKUP(F23,Indices!$A$2:$E$220,4,FALSE)="Not published", INDEX(Indices!$D$2:$D$220, MATCH("Not published", Indices!$D$2:$D$220, 0)-1), VLOOKUP(F23,Indices!$A$2:$E$220,4,FALSE)) -> Not Applicable | L23: =IF(VLOOKUP(F23,Indices!$A$2:$E$220,2,FALSE)="Not published", INDEX(Indices!$D$2:$D$220, MATCH("Not published", Indices!$D$2:$D$220, 0)-1), VLOOKUP(F23,Indices!$A$2:$E$220,2,FALSE)) -> Not Applicable | M23: Not Applicable
A24: =A23+1 -> 3 | B24: IPC#1 | C24: 2081-09-21 | D24: =bs2ad(C24) -> 2025-01-05 | E24: =D24-30 -> 2024-12-06 | F24: 2024 Nov/Dec | I24: =G24-H24 -> 0 | J24: =IF(VLOOKUP(F24,Indices!$A$2:$E$220,5,FALSE)="Not published", INDEX(Indices!$E$2:$E$220, MATCH("Not published", Indices!$E$2:$E$220, 0)-1), VLOOKUP(F24,Indices!$A$2:$E$220,5,FALSE)) -> 605.298166 | K24: =IF(VLOOKUP(F24,Indices!$A$2:$E$220,4,FALSE)="Not published", INDEX(Indices!$D$2:$D$220, MATCH("Not published", Indices!$D$2:$D$220, 0)-1), VLOOKUP(F24,Indices!$A$2:$E$220,4,FALSE)) -> 131.92247 | L24: =IF(VLOOKUP(F24,Indices!$A$2:$E$220,2,FALSE)="Not published", INDEX(Indices!$D$2:$D$220, MATCH("Not published", Indices!$D$2:$D$220, 0)-1), VLOOKUP(F24,Indices!$A$2:$E$220,2,FALSE)) -> 138.1802 | M24: 0.996038991 | N24: =IF(E24<E$23,M24,MIN(M$23,M24)) -> 0.996038991 | O24: =TRUNC(I24*(N24-1),2) -> 0
A25: 4 | B25: IPC#2 | C25: 2081-11-20 | D25: =bs2ad(C25) -> 2025-03-04 | E25: =D25-30 -> 2025-02-02 | F25: 2025 Jan/Feb | I25: =G25-H25 -> 0 | J25: =IF(VLOOKUP(F25,Indices!$A$2:$E$220,5,FALSE)="Not published", INDEX(Indices!$E$2:$E$220, MATCH("Not published", Indices!$E$2:$E$220, 0)-1), VLOOKUP(F25,Indices!$A$2:$E$220,5,FALSE)) -> 605.298166 | K25: =IF(VLOOKUP(F25,Indices!$A$2:$E$220,4,FALSE)="Not published", INDEX(Indices!$D$2:$D$220, MATCH("Not published", Indices!$D$2:$D$220, 0)-1), VLOOKUP(F25,Indices!$A$2:$E$220,4,FALSE)) -> 131.8995 | L25: =IF(VLOOKUP(F25,Indices!$A$2:$E$220,2,FALSE)="Not published", INDEX(Indices!$D$2:$D$220, MATCH("Not published", Indices!$D$2:$D$220, 0)-1), VLOOKUP(F25,Indices!$A$2:$E$220,2,FALSE)) -> 131.8995 | M25: 0.9890588085 | N25: =IF(E25<E$23,M25,MIN(M$23,M25)) -> 0.9890588085 | O25: =TRUNC(I25*(N25-1),2) -> 0
B26: Total | I26: =SUM(I24:I25) -> 0 | O26: =SUM(O24:O24) -> 0
A27: Since the latest indices are not published, last published values are used. | N27: Adjusted in previous bills (excluding VAT)
N28: Price adjustment to be paid in this bill (excluding VAT) | O28: =O26-O27 -> 0
A29: Note: | C29: 1. Always enter BS date in the format '2081-10-18.
C30: 2. The conversion to AD might not be correct.
C31: 3. Enter data in the cells filled with light blue colour.
C32: 5. Add additional rows, if necessary.
C33: 4. Data should be entered in the "Indices" sheet when they are available.
C35: Prepared By: Arjun Sharma, Engineer, Infrastructure Development Office, Parbat
C36: Feel free to share with your friends.

Sheet TSB
A1: गण्डकी प्रदेश सरकार
A2: भौतिक पूर्वाधार विकास तथा यातायात व्यवस्था मन्त्रालय
A3: पूर्वाधार विकास निर्देशनालय
A4: पूर्वाधार विकास कार्यालय
A5: पोखरा, कास्की
A6: कार्यालय कोड नं.: ३३७०१४२०१४
A8: ठेक्का सम्बन्धी बिल - IPC #1
A9: बिलको क्रम सङ्ख्याः १ | H9: सम्झौता नं.:
A10: योजना / निर्माण कार्यको नामः | H10: निर्माण व्यवसायीको नामः
A11: योजना / निर्माण कार्य कार्यान्वयन हुने स्थानः | H11: कार्य आदेश मितिः २०८१/…../…..
A12: नापी किताब नं.: | H12: काम सम्पन्न गर्नु पर्ने मितिः २०८२/…../…..
A13: नापी लिइएको मिति: २०८१/…../….. | H13: म्याद थप: x
A14: कार्य स्वीकार भएको मितिः २०८१/…../..... | H14: भेरिएसन: x
A15: BoQ को आइटम नं. | B15: कामको विवरण मुख्य र सहायक क्रियाकलाप | C15: इकार्इ | D15: सम्झौता बमोजिमको (भेरिएसन सहित) | G15: हालसम्म अद्यावधिक काम भएको | I15: अघिल्लो बिलमा चढेको | K15: हाल भएको काम | M15: बाँकी परिमाण | N15: कैफियत
D17: परिमाण | E17: दर | F17: जम्मा रकम | G17: परिमाण | H17: जम्मा रकम | I17: परिमाण | J17: जम्मा रकम | K17: परिमाण | L17: जम्मा रकम
A19: 1 | B19: 2 | C19: 3 | D19: 4 | E19: 5 | F19: 6 | G19: 7 | H19: ८ = ५ x ७ | I19: 9 | J19: 10 | K19: ११‍=७-९ | L19: १२ = ८ - १० | M19: १३=४-७ | N19: 14
A20: 1 | F20: =ROUND(D20*E20,2) -> 0 | H20: =ROUND(G20*$E20,2) -> 0 | I20: 0 | J20: =ROUND(I20*$E20,2) -> 0 | K20: =G20-I20 -> 0 | L20: =H20 -> 0 | M20: =D20-G20 -> 0 | O20: =(G20-D20)/D20 -> 
A21: =A20+1 -> 2 | F21: =ROUND(D21*E21,2) -> 0 | H21: 0 | I21: 0 | J21: =ROUND(I21*$E21,2) -> 0 | K21: =G21-I21 -> 0 | L21: =ROUND(K21*$E21,2) -> 0 | M21: =D21-G21 -> 0 | O21: =(G21-D21)/D21 -> 
A22: =A21+1 -> 3 | F22: 0 | H22: 0 | I22: 0 | J22: 0 | K22: 0 | L22: 0 | M22: 0
A23: 4 | F23: 0 | H23: 0 | I23: 0 | J23: 0 | K23: 0 | L23: 0 | M23: 0
A24: 5 | F24: 0 | H24: 0 | I24: 0 | J24: 0 | K24: 0 | L24: 0 | M24: 0
A25: 6 | F25: 0 | H25: 0 | I25: 0 | J25: 0 | K25: 0 | L25: 0 | M25: 0
A26: 7 | F26: 0 | H26: 0 | I26: 0 | J26: 0 | K26: 0 | L26: 0 | M26: 0
A27: 8 | F27: 0 | H27: 0 | I27: 0 | J27: 0 | K27: 0 | L27: 0 | M27: 0
A28: 9 | F28: 0 | H28: 0 | I28: 0 | J28: 0 | K28: 0 | L28: 0 | M28: 0
A29: 10 | F29: 0 | H29: 0 | I29: 0 | J29: 0 | K29: 0 | L29: 0 | M29: 0
A30: 11 | F30: 0 | H30: 0 | I30: 0 | J30: 0 | K30: 0 | L30: 0 | M30: 0
B31: जम्मा | F31: =SUM(F21:F30) -> 0 | H31: =SUM(H20:H30) -> 0 | J31: =ROUND(SUM(J20:J28),2) -> 0 | L31: =ROUND(SUM(L20:L30),2) -> 0
B32: मूल्य समायोजन | F32: 0 | H32: 0 | J32: 0 | L32: 0
B33: मूल्य समायोजन सहित जम्मा | F33: =SUM(F31:F32) -> 0 | H33: =SUM(H31:H32) -> 0 | J33: =SUM(J31:J32) -> 0 | L33: =SUM(L31:L32) -> 0
B34: १३% मूल्य अभिवृद्धि कर | F34: =ROUND(F33*13%,2) -> 0 | H34: =ROUND(H33*13%,2) -> 0 | J34: =ROUND(J33*13%,2) -> 0 | L34: =ROUND(L33*13%,2) -> 0
B35: PS | F35: =F20 -> 0 | H35: Added on total above | J35: =J20 -> 0 | L35: Added on total above
B36: कुल जम्मा | F36: =ROUND(SUM(F33:F35),2) -> 0 | H36: =ROUND(SUM(H33:H35),2) -> 0 | J36: =ROUND(SUM(J33:J34),2) -> 0 | L36: =SUM(L33:L35) -> 0
A38: यो बिलबमोजिम काम भएको जम्मा रू.: | C38: =H36 -> 0 | E38: हाल काम भएको बाँकी दिनुपर्ने रू.: | J38: =ROUNDDOWN(C38-C39,0) -> 0 | L38: यस बिल बमोजिम गरिएको भुक्तानी
A39: अघिल्लो बिलसम्म भुक्तानी भएको रू.: | C39: =J36 -> 0 | E39: कट्टा गर्नु पर्ने: | L39: भौचर नं.:
A40: अघिल्लो भुक्तानी बिलको क्रम सङ्ख्या.: | C40: x | E40: क. मोबिलाइजेसन पेस्की रू.: ----------------------------------------- | J40: =-IF(C45>0,IF(M43>30%,IF(ROUNDUP(L31*40%/1000,0)*1000>C45,C45,ROUNDUP(L31*40%/1000,0)*1000),0),0) -> 0 | L40: भुक्तानी मिति:
A41: अघिल्लो भुक्तानी बिलको भौ.नं. | C41: x | E41: ख. १.५% अग्रीम आय कर रकम रू.: --------------------------------- | J41: =-ROUNDUP(L31*1.5%,0) -> 0 | L41: भुक्तानी रकम रू.
A42: मोबिलाइजेसन पेस्की | E42: ग. ५% धरौटी रकम रू.: ---------------------------------------------- | J42: =-ROUNDUP(L31*5%,0) -> 0
A43: निर्माण व्यवसायीले कार्यालयबाट लिएको जम्मा पेस्की | C43: 0 | E43: घ. अन्य कट्टी गर्ने पर्ने रकम (पूर्वनिर्धारित क्षतिपूर्ति) रू.: -------------- | J43: 0 | L43: कामको प्रगति | M43: =H36/F36 -> 
A44: अघिल्ला बिलहरूबाट फर्स्यौट भएको पेस्की | C44: 0 | E44: ङ. मुल्य अभिवृद्धि कर रकम रू.: -------------------------------------- | J44: =-ROUNDUP(L34*30%,0) -> 0
A45: फर्स्यौट गर्न बाँकी पेस्की | C45: =C43-C44 -> 0 | E45: ङ. निर्माण व्यवसाय कोष रकम रू.: ------------------------------------- | J45: =-ROUNDUP(L33*0.1%,0) -> 0
A46: यो बिलबाट कट्टा हुने पेस्की | C46: =-J40 -> 0 | E46: खुद दिनु पर्ने रकम रू.: ------------------------------------------------ | J46: =SUM(J38:J45) -> 0
A47: यो बिल भुक्तानी पश्चात बाँकी रहने पेस्की | C47: =C45-C46 -> 0 | E47: अक्षरेपिः
A49: निर्माण व्यवसायी: | C49: तयार गर्नेः | H49: जाँच्ने: | J49: सिफारिस गर्नेः | L49: स्वीकृत गर्ने:
A52: …........... | C52: …........... | H52: …........... | J52: …........... | L52: …...........
A53: नाम: | C53: नाम लेख्ने | H53: नाम लेख्ने | J53: नाम लेख्ने | L53: नाम लेख्ने
A54: पदः आधिकारिक प्रतिनिधि | C54: अधिकृत (छैटौँ) | H54: सडक इन्जिनियर | J54: इन्जिनियर | L54: नि. कार्यालय प्रमुख
A55: २०८१/...../..... | C55: =A55 -> २०८१/...../..... | H55: २०८१/...../..... | J55: २०८१/...../..... | L55: २०८१/...../.....
B57: यो बिलबमोजिम जम्मा रू .....................अक्षरमा ....................................................................................को चेक नं: ........................बुझिलिए ।
A58: उद्देश्य
A59: निर्माण व्यवसायीले गरेका काममा र सो बापत निर्माण व्यवसायीलार्इ भएको हिसाब समेत गरी अभिलेख राख्न यो फाराम तर्जुमा गरिएको हो । सार्वजनिक निर्माण कार्य सम्पन्न भइसकेपछि प्रत्येक निर्माण व्यवसायीबाट यही ढाँचामा ठेक्का सम्बन्धि बिल तयार गराउनु पर्दछ ।
A60: फाराम भर्ने तरिकाः
A61: 1 | B61: यस ठेक्कासम्बन्धी बिलमा एउटा निर्माण व्यवसायीको एउटा ठेक्काको अभिलेख राख्नका लागि प्रयोग गर्नुपर्छ ।
A62: 2 | B62: सुरुमा योजनाको नाम, योजना कार्यान्वयन हुने स्थान, निर्माण व्यवसायीको नाम, सम्झौता न. लेख्नुपर्छ।
A63: 3 | B63: ठेक्का बिलको क्रम सङ्ख्या १ बाट सुरु गरी सिलसिलेबार क्रम सङ्ख्या राख्नुपर्छ ।
A64: 4 | B64: बिल तयार गर्न कुन नापि किताब अनुसारको बिल हो सो नापि किताबको न. उल्लेख गर्नुपर्छ ।
A65: 5 | B65: ठेक्कासम्बन्धी विभिन्न मितिहरू जस्तै कार्य आदेश पाएको मिति, काम सम्पन्न गर्नुपर्ने मिति, म्याद थप वा भेरिएसन भएको मिति तथा काम स्वीकार भएको मिति लगायतका विवरण तोकिएको स्थानमा लेख्नुपर्छ ।
A66: 6 | B66: महल १ मा BoQ को आइटम न. लेख्नुपर्छ ।
A67: 7 | B67: महल २ मा कामको विवरण क्रमशः मुख्य क्रियाकलाप र सहायक क्रियाकलाप लेख्नुपर्छ ।
A68: 8 | B68: महल ३ मा ठेक्काको कामको एकाइ लेख्नुपर्छ ।
A69: 9 | B69: महल ४, ५ र ६ मा भेरिएसन सहितको ठेक्कामा स्वीकृत भएको परिमाण, प्रति एकाइ दरका आधारमा जम्मा रकम लेख्नुपर्छ ।
A70: 10 | B70: महल ७ मा हालसम्म अद्यावधिक भएको कामको परिमाण उल्लेख गर्नुपर्छ ।
A71: 11 | B71: महल ८ मा ठेक्का सम्झौतामा स्वीकृत दर (महल ५) र हालसम्मको कामको परिमाण (महल ७) को गुणान गरी आउने जम्मा रकम लेख्नुपर्छ ।
A72: 12 | B72: महल ९ र १० मा अघिल्लो बिलमा चढेको क्रमशः कामको परिमाण र जम्मा रकम लेख्नुपर्छ ।
A73: 13 | B73: महल ११ मा यस अवधि (हाल) सम्म कायम वा काम भएको परिमाण उल्लेख गर्नुपर्छ । यसका लागि महल ७ को हाल सम्मको कामको परिमाणबाट अघिल्लो बिलहरूमा चढिसकेको परिमाण (महल ९) घटाउँदा बाँकी हुन आउने खुद परिमाण लेख्नुपर्छ ।
A74: 14 | B74: महल १२ मा यस अवधि (हाल) को परिमाणको जम्मा रकम कति हो सो लेख्नुपर्छ । यसका लागि महल ६ को हालसम्मको सञ्चयी (cumulative) जम्मा रकमबाट अघिल्लो बिलहरूमा चढेको जम्मा रकम (महल १०)को रकम घटाउँदा बाँकी रहने खुद जम्मा रकम लेख्नुपर्छ ।
A75: 15 | B75: महल १३ मा कार्य गर्न बाँकि परिमाण कति हो सो लेख्नु पर्दछ । यसका लागि सम्झौता बमोजिमको परिमाण (महल ४) बाट महल ७ को हाल सम्मको कामको परिमाणबाट घटाउँदा बाँकी हुन आउने खुद परिमाण लेख्नुपर्छ ।
A76: 16 | B76: महल १४ मा कुनै कैफियत भएमा सो खुलाउनुपर्छ ।
A77: 17 | B77: यस ठेक्कासम्बन्धी बिल तयार गर्ने व्यक्तिले यो बिल बमोजिम काम भएको जम्मा रकम, अघिल्लो बिलसम्म भुक्तानी भएको रकम, अघिल्लो भुक्तानी बिलको क्रम सङ्ख्या र अघिल्लो भुक्तानी बिलको भौचर नं. लेख्नुपर्छ ।
A78: 18 | B78: लेखा शाखामा उक्त निर्माण व्यवसायीको नाममा सोही ठेक्काको सम्बन्धमा विभिन्न तिर्न तथा असुल हुन बाँकी रकमहरू हुन्छन् । यसको नियन्त्रणका लागि हाल काम भएको बाँकी दिनुपर्ने रकम लेखेर आवश्यक विभिन्न शीर्षकमा रकम कट्टा गर्नुपर्ने भए सो रकमहरू कट्टा गर्नुपर्छ । रकम कट्टा हुने शीर्षकहरू पेस्की रकम, मालसामानको मोल, मेसिनरी औजारको बहाल रकम, अग्रीम आय कर रकम, धरौटी रकम, मुल्य अभिबृद्धि र अन्य कट्टी हुने रकम पर्दछन् ।
A79: 19 | B79: हाल काम भएको बाँकी दिनुपर्ने रकमबाट कट्टा हुने रकम घटाउँदा बाँकी हुने खुद रकमलाई "खुद दिनुपर्ने रकम रू" मा राख्नुपर्छ ।
A80: 20 | B80: भुक्तानी नियन्त्रण तथा पर्याप्त स्रेस्ता (अभिलेख)का लागि यस बिलबमोजिम गरिएको भुक्तानी विवरण जस्तैः भुक्तानीको भौचर नं., भुक्तानी मिति र भुक्तानी रकम उल्लेख गर्नुपर्छ ।
A81: 21 | B81: सबै विवरण प्रविष्टि गरिसकेपछि तयार गर्ने, जाँच गर्ने र स्वीकृत गर्नेको नाम, पद र मिति लेखेर हस्ताक्षर गर्नुपर्छ ।

Sheet SOQ
A1: Gandaki Province Government
A2: Ministry of Physical Infrastructure Development and Transport Management
A3: Infrastructure Development Directorate
A4: Infrastructure Development Office
A5: Kushma, Parbat
A7: MEASUREMENT SHEET - SUMMARY OF QUANTITIES - IPC#1
A9: Project :
A10: Location :
A11: S.N. | B11: Particulars | C11: Unit | D11: Drain | E11: Masonry Wall | F11: Roadway | G11: RCC Slab | H11: Others | I11: Total
A12: 1 | H12: =TSB!G20 -> 0 | I12: =SUM(D12:H12) -> 0
A13: 2 | C13: no. | H13: 1 | I13: =ROUND(SUM(D13:H13),2) -> 1
A14: 3 | C14: cu.m. | E14: =Msnry!AA18 -> 51.62 | I14: =ROUND(SUM(D14:H14),2) -> 51.62
A15: 4 | C15: cu.m. | I15: 0
A16: 5 | C16: cu.m. | E16: =Msnry!AF18 -> 99.05 | I16: 99.05
A17: 6 | C17: cu.m. | E17: =Msnry!AC18 -> 5.05 | I17: 5.05
A18: 7 | C18: cu.m. | E18: =Msnry!AE18 -> 3.79 | I18: 3.79
A19: 8 | C19: cu.m. | I19: 0
A20: 9 | C20: cu.m. | I20: 0
A21: 10 | C21: cu.m. | I21: 0
A22: 11 | I22: 0

Sheet Drn
A1: Gandaki Province Government
A2: Ministry of Physical Infrastructure Development and Transport Management
A3: Infrastructure Development Directorate
A4: Infrastructure Development Office
A5: Pokhara, Kaski
A7: MEASUREMENT SHEET - PLUM DRAIN - IPC#1
A9: Project :
A10: Location :
A11: S.N. | B11: Chainage | C11: Type of Drain | D11: No. | E11: Length | F11: Width of Soling | G11: Avg. Width | H11: Width of PCC at middle only | I11: Avg. Width of PCC | J11: Foundation Excavation | L11: Soling | N11: PCC M15 | P11: Plum Concrete
N12: Ht. | O12: Qty. | P12: Hill Side Wall | T12: Road Side Wall | X12: Qty.
J13: Ht. | K13: Qty. | L13: Ht. | M13: Qty. | P13: Width | Q13: Avg. Width | R13: Ht. | S13: Avg. Ht. | T13: Width | U13: Avg. Width | V13: Ht. | W13: Avg. Ht.
E14: m | F14: m | G14: m | H14: m | I14: m | J14: m | K14: m3 | L14: m | M14: m3 | N14: m | O14: m3 | P14: m | Q14: m | R14: m | S14: m | T14: m | U14: m | V14: m | W14: m | X14: m3
A15: 1 | B15: 0 | C15: Both Walls | D15: 1 | E15: 0 | F15: =H15+P15+T15 -> 0.77 | H15: 0.32 | K15: =ROUND(J15*G15*E15,2) -> 0 | L15: 0.1 | M15: =ROUND(E15*F15*L15,2) -> 0 | N15: 0.1 | O15: =ROUND(N15*I15*E15,2) -> 0 | P15: 0.2 | R15: 0.59 | T15: 0.25 | V15: 0.5
A16: =A15+1 -> 2 | B16: =B15+E16 -> 12 | C16: Both Walls | D16: 1 | E16: 12 | F16: =H16+P16+T16 -> 0.78 | G16: =(F15+F16)/2 -> 0.775 | H16: 0.33 | I16: =(H15+H16)/2 -> 0.325 | J16: =AVERAGE(S16,W16) -> 0.55 | K16: =ROUND(J16*G16*E16,2) -> 5.12 | L16: 0.1 | M16: =ROUND(E16*F16*L16,2) -> 0.94 | N16: =N$15 -> 0.1 | O16: =ROUND(N16*I16*E16,2) -> 0.39 | P16: 0.2 | Q16: =(P15+P16)/2 -> 0.2 | R16: 0.61 | S16: =(R15+R16)/2 -> 0.6 | T16: 0.25 | U16: =(T15+T16)/2 -> 0.25 | V16: 0.5 | W16: =(V15+V16)/2 -> 0.5 | X16: =ROUND(E16*Q16*S16+E16*U16*W16,2) -> 2.94
A17: =A16+1 -> 3 | B17: =B16+E17 -> 26.95 | C17: Both Walls | D17: 1 | E17: 14.95 | F17: 0.76 | G17: =(F16+F17)/2 -> 0.77 | H17: 0.31 | I17: =(H16+H17)/2 -> 0.32 | J17: =AVERAGE(S17,W17) -> 0.5525 | K17: 6.36 | L17: 0.1 | M17: =ROUND(E17*F17*L17,2) -> 1.14 | N17: =N$15 -> 0.1 | O17: 0.48 | P17: 0.2 | Q17: =(P16+P17)/2 -> 0.2 | R17: 0.6 | S17: =(R16+R17)/2 -> 0.605 | T17: 0.25 | U17: =(T16+T17)/2 -> 0.25 | V17: 0.5 | W17: =(V16+V17)/2 -> 0.5 | X17: =ROUND(E17*Q17*S17+E17*U17*W17,2) -> 3.68
A19: =A17+1 -> 4 | B19: 0 | C19: Single Wall | D19: 1 | E19: 0 | F19: =H19+P19+T19 -> 0.76 | H19: 0.51 | K19: 0 | L19: 0.1 | M19: =ROUND(E19*F19*L19,2) -> 0 | N19: =N$15 -> 0.1 | O19: 0 | T19: 0.25 | V19: 0.5 | X19: =ROUND(E19*Q19*S19+E19*U19*W19,2) -> 0
A20: 5 | B20: =B19+E20 -> 28 | C20: Single Wall | D20: 1 | E20: 28 | F20: 0.85 | G20: =(F19+F20)/2 -> 0.805 | H20: 0.6 | I20: =(H19+H20)/2 -> 0.555 | J20: =AVERAGE(S20,W20) -> 0.5 | K20: 11.27 | L20: 0.1 | M20: 2.38 | N20: 0.1 | O20: 1.55 | T20: 0.25 | U20: =(T19+T20)/2 -> 0.25 | V20: 0.5 | W20: =(V19+V20)/2 -> 0.5 | X20: 3.5
A21: 6 | B21: 35 | C21: Single Wall | D21: 1 | E21: 7 | F21: 0.85 | G21: 0.85 | H21: 0.6 | I21: 0.6 | J21: =AVERAGE(S21,W21) -> 0.5 | K21: 2.98 | L21: 0.1 | M21: 0.6 | N21: 0.1 | O21: 0.42 | T21: 0.25 | U21: =(T20+T21)/2 -> 0.25 | V21: 0.5 | W21: 0.5 | X21: 0.88
A22: 7 | B22: 45 | C22: Single Wall | D22: 1 | E22: 10 | F22: 0.85 | G22: 0.85 | H22: 0.6 | I22: 0.6 | J22: 0.5 | K22: 4.25 | L22: 0.1 | M22: 0.85 | N22: 0.1 | O22: 0.6 | T22: 0.25 | U22: 0.25 | V22: 0.5 | W22: 0.5 | X22: 1.25
A23: 8 | B23: 55 | C23: Single Wall | D23: 1 | E23: 10 | F23: 0.86 | G23: 0.855 | H23: 0.61 | I23: 0.605 | J23: 0.5 | K23: 4.28 | L23: 0.1 | M23: 0.86 | N23: 0.1 | O23: 0.61 | T23: 0.25 | U23: 0.25 | V23: 0.5 | W23: 0.5 | X23: 1.25
A24: 9 | B24: 65 | C24: Single Wall | D24: 1 | E24: 10 | F24: 0.87 | G24: 0.865 | H24: 0.62 | I24: 0.615 | J24: 0.5 | K24: 4.33 | L24: 0.1 | M24: 0.87 | N24: 0.1 | O24: 0.62 | T24: 0.25 | U24: 0.25 | V24: 0.5 | W24: 0.5 | X24: 1.25
A25: 10 | B25: 75 | C25: Single Wall | D25: 1 | E25: 10 | F25: 0.85 | G25: 0.86 | H25: 0.6 | I25: 0.61 | J25: 0.5 | K25: 4.3 | L25: 0.1 | M25: 0.85 | N25: 0.1 | O25: 0.61 | T25: 0.25 | U25: 0.25 | V25: 0.5 | W25: 0.5 | X25: 1.25
A26: 11 | B26: 85 | C26: Single Wall | D26: 1 | E26: 10 | F26: 0.84 | G26: 0.845 | H26: 0.59 | I26: 0.595 | J26: 0.5 | K26: 4.23 | L26: 0.1 | M26: 0.84 | N26: 0.1 | O26: 0.6 | T26: 0.25 | U26: 0.25 | V26: 0.5 | W26: 0.5 | X26: 1.25
A27: 12 | B27: 95 | C27: Single Wall | D27: 1 | E27: 10 | F27: 0.88 | G27: 0.86 | H27: 0.63 | I27: 0.61 | J27: 0.5 | K27: 4.3 | L27: 0.1 | M27: 0.88 | N27: 0.1 | O27: 0.61 | T27: 0.25 | U27: 0.25 | V27: 0.5 | W27: 0.5 | X27: 1.25
A28: 13 | B28: 105 | C28: Single Wall | D28: 1 | E28: 10 | F28: 0.86 | G28: 0.87 | H28: 0.61 | I28: 0.62 | J28: 0.5 | K28: 4.35 | L28: 0.1 | M28: 0.86 | N28: 0.1 | O28: 0.62 | T28: 0.25 | U28: 0.25 | V28: 0.5 | W28: 0.5 | X28: 1.25
A29: 14 | B29: 115 | C29: Single Wall | D29: 1 | E29: 10 | F29: 0.88 | G29: 0.87 | H29: 0.63 | I29: 0.62 | J29: 0.5 | K29: 4.35 | L29: 0.1 | M29: 0.88 | N29: 0.1 | O29: 0.62 | T29: 0.25 | U29: 0.25 | V29: 0.5 | W29: 0.5 | X29: 1.25
A30: 15 | B30: 125 | C30: Single Wall | D30: 1 | E30: 10 | F30: 0.87 | G30: 0.875 | H30: 0.62 | I30: 0.625 | J30: 0.5 | K30: 4.38 | L30: 0.1 | M30: 0.87 | N30: 0.1 | O30: 0.63 | T30: 0.25 | U30: 0.25 | V30: 0.5 | W30: 0.5 | X30: 1.25
A31: 16 | B31: 135 | C31: Single Wall | D31: 1 | E31: 10 | F31: 0.9 | G31: 0.885 | H31: 0.65 | I31: 0.635 | J31: 0.5 | K31: 4.43 | L31: 0.1 | M31: 0.9 | N31: 0.1 | O31: 0.64 | T31: 0.25 | U31: 0.25 | V31: 0.5 | W31: 0.5 | X31: 1.25
A32: 17 | B32: 145 | C32: Single Wall | D32: 1 | E32: 10 | F32: 0.92 | G32: 0.91 | H32: 0.67 | I32: 0.66 | J32: 0.5 | K32: 4.55 | L32: 0.1 | M32: 0.92 | N32: 0.1 | O32: 0.66 | T32: 0.25 | U32: 0.25 | V32: 0.5 | W32: 0.5 | X32: 1.25
A33: 18 | B33: 155 | C33: Single Wall | D33: 1 | E33: 10 | F33: 0.89 | G33: 0.905 | H33: 0.64 | I33: 0.655 | J33: 0.5 | K33: 4.53 | L33: 0.1 | M33: 0.89 | N33: 0.1 | O33: 0.66 | T33: 0.25 | U33: 0.25 | V33: 0.5 | W33: 0.5 | X33: 1.25
A34: 19 | B34: 165 | C34: Single Wall | D34: 1 | E34: 10 | F34: 0.87 | G34: 0.88 | H34: 0.62 | I34: 0.63 | J34: 0.5 | K34: 4.4 | L34: 0.1 | M34: 0.87 | N34: 0.1 | O34: 0.63 | T34: 0.25 | U34: 0.25 | V34: 0.5 | W34: 0.5 | X34: 1.25
A35: 20 | B35: 175 | C35: Single Wall | D35: 1 | E35: 10 | F35: 0.85 | G35: 0.86 | H35: 0.6 | I35: 0.61 | J35: 0.5 | K35: 4.3 | L35: 0.1 | M35: 0.85 | N35: 0.1 | O35: 0.61 | T35: 0.25 | U35: 0.25 | V35: 0.5 | W35: 0.5 | X35: 1.25
A36: 21 | B36: 185 | C36: Single Wall | D36: 1 | E36: 10 | F36: 0.86 | G36: 0.855 | H36: 0.61 | I36: 0.605 | J36: 0.5 | K36: 4.28 | L36: 0.1 | M36: 0.86 | N36: 0.1 | O36: 0.61 | T36: 0.25 | U36: 0.25 | V36: 0.5 | W36: 0.5 | X36: 1.25
A37: 22 | B37: 193 | C37: Single Wall | D37: 1 | E37: 8 | F37: 0.87 | G37: 0.865 | H37: 0.62 | I37: 0.6 | J37: 0.5 | K37: 3.46 | L37: 0.1 | M37: 0.7 | N37: 0.1 | O37: 0.48 | T37: 0.25 | U37: 0.25 | V37: 0.5 | W37: 0.5 | X37: 1
A38: 23 | B38: Deduct: Plum at Cross Drain (0.4 x 0.64 x 0.24) | X38: =-1*(0.4*0.64*0.24) -> -0.06144
A39: 24 | B39: Add: Plum at end of right side drain (0.47 x 0.33 x 0.6) | X39: =0.47*0.33*0.6 -> 0.09306
B40: Total | E40: =ROUND(SUM(E15:E37),2) -> 219.95 | K40: =ROUND(SUM(K15:K39),2) -> 94.45 | M40: =ROUND(SUM(M15:M39),2) -> 18.81 | O40: =ROUND(SUM(O15:O39),2) -> 12.65 | X40: =SUM(X15:X39) -> 30.78162
A41: 5 | B41: PCC M20 | D41: m3 | E41: =#REF!+#REF! -> 

Sheet Msnry
A1: Gandaki Province Government
A2: Ministry of Physical Infrastructure Development and Transport Management
A3: Infrastructure Development Directorate
A4: Infrastructure Development Office
A5: Pokhara, Kaski
A7: MEASUREMENT SHEET - STONE MASONRY WALL - IPC#1
A9: Project :
A10: Location :
A11: S.N. | B11: Chainage | C11: Description of works | D11: Side | E11: Bill No. | F11: No. | G11: Length | J11: Top Width | O11: Base Width | T11: Avg. Width | U11: Height | Z11: Earthwork | AB11: Soling | AD11: PCC | AF11: Masonry | AG11: Remarks
G12: 1 | H12: 2 | I12: Avg. | J12: 1 | K12: 2 | L12: 3 | M12: 4 | N12: Avg. | O12: 1 | P12: 2 | Q12: 3 | R12: 4 | S12: Avg. | U12: 1 | V12: 2 | W12: 3 | X12: 4 | Y12: Avg. | Z12: Coeff. | AA12: Qty. | AB12: Thick-ness | AC12: Qty. | AD12: Thick-ness | AE12: Qty. | AF12: Qty.
A13: 1 | B13: 0 | C13: Breast wall - 1st section | D13: LHS | E13: IPC#1 | F13: 1 | G13: 5.15 | H13: 5.1 | I13: =AVERAGE(G13:H13) -> 5.125 | J13: 0.48 | K13: 0.46 | L13: 0.47 | M13: 0.48 | N13: =AVERAGE(J13:M13) -> 0.4725 | O13: 1.5 | P13: 1.45 | Q13: 1.4 | R13: 1.35 | S13: =AVERAGE(O13:R13) -> 1.425 | T13: =(N13+S13)/2 -> 0.94875 | U13: 3 | V13: 2.95 | W13: 2.85 | X13: 2.75 | Y13: =AVERAGE(U13:X13) -> 2.8875 | Z13: 0.3 | AA13: =ROUND(I13*S13*Y13*Z13,2) -> 6.33 | AB13: 0.1 | AC13: =ROUND(I13*S13*AB13,2) -> 0.73 | AD13: 0.075 | AE13: =ROUND(I13*S13*AD13,2) -> 0.55 | AF13: =ROUND(F13*I13*T13*Y13,2) -> 14.04 | AG13: B = 0.5H
A14: =A13+1 -> 2 | B14: 9.8 | C14: Breast wall - 2nd section | D14: LHS | E14: IPC#1 | F14: 1 | G14: 7.95 | I14: =AVERAGE(G14:H14) -> 7.95 | J14: 0.4 | N14: =AVERAGE(J14:M14) -> 0.4 | O14: =Y14*0.5 -> 1.9 | S14: =AVERAGE(O14:R14) -> 1.9 | T14: =(N14+S14)/2 -> 1.15 | U14: 3.8 | Y14: =AVERAGE(U14:X14) -> 3.8 | Z14: 0.3 | AA14: =ROUND(I14*S14*Y14*Z14,2) -> 17.22 | AB14: 0.1 | AC14: =ROUND(I14*S14*AB14,2) -> 1.51 | AD14: 0.075 | AE14: =ROUND(I14*S14*AD14,2) -> 1.13 | AF14: =ROUND(F14*I14*T14*Y14,2) -> 34.74 | AG14: B = 0.5H
A15: =A14+1 -> 3 | B15: 17.2 | C15: Retaining wall - 1st section | D15: RHS | E15: IPC#1 | F15: 1 | G15: 8.05 | I15: 8.05 | J15: 0.45 | N15: 0.45 | O15: 1.65 | S15: 1.65 | T15: 1.05 | U15: 3.3 | V15: 3.38 | Y15: 3.34 | Z15: 0.3 | AA15: 13.31 | AB15: 0.1 | AC15: 1.33 | AD15: 0.075 | AE15: 1 | AF15: 28.23 | AG15: B = 0.5H
A16: 4 | B16: 23 | C16: Retaining wall - 2nd section | D16: RHS | E16: IPC#1 | F16: 1 | G16: 4 | I16: 4 | J16: 0.4 | N16: 0.4 | O16: 1.65 | S16: 1.65 | T16: 1.025 | U16: 3.36 | V16: 3.34 | Y16: 3.35 | Z16: 0.3 | AA16: 6.63 | AB16: 0.1 | AC16: 0.66 | AD16: 0.075 | AE16: 0.5 | AF16: 13.74 | AG16: B = 0.5H
A17: 5 | B17: 28 | C17: Retaining wall - 3rd section | D17: RHS | E17: IPC#1 | F17: 0.5 | G17: 5 | H17: 4.9 | I17: 4.95 | J17: 0.38 | K17: 0.36 | N17: 0.37 | O17: 1.65 | S17: 1.65 | T17: 1.01 | U17: 3.34 | V17: 3.3 | Y17: 3.32 | Z17: 0.3 | AA17: 8.13 | AB17: 0.1 | AC17: 0.82 | AD17: 0.075 | AE17: 0.61 | AF17: =ROUND(F17*I17*T17*Y17,2) -> 8.3 | AG17: B = 0.5H, Triangular Wall
C18: Grand Total | AA18: =SUM(AA13:AA17) -> 51.62 | AC18: =SUM(AC13:AC17) -> 5.05 | AE18: =SUM(AE13:AE17) -> 3.79 | AF18: =SUM(AF13:AF17) -> 99.05

Sheet WAR
A1: गण्डकी प्रदेश सरकार
A2: भौतिक पूर्वाधार विकास तथा यातायात व्यवस्था मन्त्रालय
A3: पूर्वाधार विकास निर्देशनालय
A4: पूर्वाधार विकास कार्यालय
A5: पोखरा कास्की
A6: कार्यालय कोड नं.: ३३७०१४२०१४
A8: कार्य स्वीकार प्रतिवेदन
A10: =TSB!A10 -> योजना / निर्माण कार्यको नामः
A11: कामको विवरण:
A12: फर्मको नाम: ..... कन्स्ट्रक्सन प्रा.लि.
A13: =TSB!H9 -> सम्झौता नं.: | L13: प्रतिवेदनको मितिः २०८१/…../…..
A14: लागत अनुमानको कुल रकमः ---------------------------------------------------------------------- | D14: =#REF! ->  | L14: काम सुरु भएको मितिः २०८१/…../…..
A15: खर्च भएको कुल रकमः ------------------------------------------------------------------------------ | D15: =L36 -> 0 | L15: काम सम्पन्न गर्नु पर्ने मितिः २०८१/...../.....
A16: सुरु लागत अनुमान भन्दा घटी बढीको प्रतिशतः ---------------------------------------------------- | D16: =ROUND((D15-D14)/D14,4) ->  | L16: कार्य स्वीकार भएको मितिः २०८१/...../.....
A17: भेरिएसनपछिको कुल लागत अनुमान भन्दा घटी बढीको प्रतिशतः ---------------------------------- | D17: x | L17: त्रुटी सच्याउने अवधि समाप्त हुने मिति: २०८२/...../.....
A18: क्र.सं. | B18: BoQ को आइटम नं. | C18: कामको विवरण | D18: सुरु लागत अनुमान | G18: भेरिएसनपछिको कुल लागत अनुमान | J18: खुद भएको कामको | M18: फरक (सुरु लागत अनुमान र खुद भएको काम विच) | P18: कैफियत
D20: परिमाण | E20: दर | F20: जम्मा | G20: परिमाण | H20: दर | I20: जम्मा | J20: परिमाण | K20: दर | L20: जम्मा | M20: परिमाण | N20: दर | O20: जम्मा
A21: 1 | B21: 2 | C21: 3 | D21: 4 | E21: 5 | F21: 6 | G21: 7 | H21: 8 | I21: 9 | J21: 10 | K21: 11 | L21: 12 | M21: 13 | N21: 14 | O21: 15 | P21: 16
A22: 1 | B22: 1 | F22: =ROUND(D22*E22,2) -> 0 | L22: =ROUND(J22*K22,2) -> 0 | M22: =J22-D22 -> 0 | N22: =K22-E22 -> 0 | O22: =L22-F22 -> 0
A23: =A22+1 -> 2 | B23: =B22+1 -> 2 | F23: =ROUND(D23*E23,2) -> 0 | L23: =ROUND(J23*K23,2) -> 0 | M23: =J23-D23 -> 0 | N23: 0 | O23: 0
A24: =A23+1 -> 3 | B24: 3 | F24: 0 | L24: 0 | M24: 0 | N24: 0 | O24: 0
A25: 4 | B25: 4 | F25: 0 | L25: 0 | M25: 0 | N25: 0 | O25: 0
A26: 5 | B26: 5 | F26: 0 | L26: 0 | M26: 0 | N26: 0 | O26: 0
A27: 6 | B27: 6 | F27: 0 | L27: 0 | M27: 0 | N27: 0 | O27: 0
A28: 7 | B28: 7 | F28: 0 | L28: 0 | M28: 0 | N28: 0 | O28: 0
A29: 8 | B29: 8 | F29: 0 | L29: 0 | M29: 0 | N29: 0 | O29: 0
A30: 9 | B30: 9 | F30: 0 | L30: 0 | M30: 0 | N30: 0 | O30: 0
A31: 10 | B31: 10 | F31: 0 | L31: 0 | M31: 0 | N31: 0 | O31: 0
A32: 11 | B32: 11 | F32: 0 | L32: 0 | M32: 0 | N32: 0 | O32: 0
C33: जम्मा | F33: =SUM(F23:F32) -> 0 | L33: =SUM(L23:L32) -> 0 | O33: =SUM(O23:O32) -> 0
C34: १३% मूल्य अभिवृद्धि कर | F34: =ROUND(F33*13%,2) -> 0 | L34: =ROUND(L33*13%,2) -> 0 | O34: =L34-F34 -> 0
C35: PS | F35: =F22 -> 0 | L35: =L22 -> 0 | O35: =O22 -> 0
C36: कुल जम्मा | F36: =ROUND(SUM(F33:F35),2) -> 0 | L36: =SUM(L33:L35) -> 0 | O36: =ROUND(SUM(O33:O35),2) -> 0 | R36: =ROUND(TSB!H36,2) -> 0 | S36: =R36=L36 -> TRUE
A38: =CONCATENATE("क) स्वीकृत लागत अनुमान (इष्टिमेट) भन्दा घटि बढी खर्च रू. ",O36,", प्रतिशत (%): ",D16*100,"%") ->  | M38: उपर्युक्त बमोजिम भएको कार्य सुरु सम्झौताको स्वीकृत डिजाइन र स्पेसिफिकेसन बमोजिम भएको छ। भेरिएसन आदेश र सर्तहरू बमोजिम भएको हुँदा उक्त कार्य सम्पन्न भएको स्वीकार गरिएको छ।
A39: =CONCATENATE("ख) घटी / बढीको पुस्ट्याइँ: लागत अनुमानको तुलनामा निर्माण व्यवसायीले कबोल गरेको अङ्क ",-ROUND((F36-TSB!F36)/WAR!F36%,2),"% कम भएको साथै सम्झौताको तुलनामा उल्लेख्य फरक नरहेको ") -> 
A42: स्वीकृत लागत अनुमान, डिजाइन र स्पेसिफिकेसनअनुसार काम भएको छ भनी तयार गर्ने, जाँच गर्ने र सिफारिस गर्ने
A43: तयार गर्नेः | D43: जाँच्ने: | I43: सिफारिस गर्नेः | M43: स्वीकृत गर्ने:
A45: …........... | D45: …........... | I45: …........... | M45: …...........
A46: नाम लेख्ने | D46: नाम लेख्ने | I46: नाम लेख्ने | M46: नाम लेख्ने
A47: अधिकृत (छैटौँ) | D47: सडक इन्जिनियर | I47: इन्जिनियर | M47: नि. कार्यालय प्रमुख
A48: २०८१/...../..... | D48: २०८१/...../..... | I48: २०८१/...../..... | M48: २०८१/...../.....
A49: उद्देश्य
A50: कार्य स्वीकार गर्दा भएको कामको अवस्थाको यथार्थ विवरण तयार गर्नु र निर्माण कामको सम्पादन भएपछि सुरु इस्टिमेटको परिमाणमा खुद भएको काम घटी बढी के कति भएको छ र स्वीकृत इस्टिमेट तथा डिजाइनबमोजिम काम भएको छ कि छैन भनी प्रमाणित गर्नका लागि यो फारामको तर्जुमा भएको हो ।
A51: फाराम भर्ने तरिकाः
A52: 1 | B52: कार्य स्वीकार गर्दा अनुमानित काम तथा खुद भएको कामको चेक जाँचको लागि यस फाराम (प्रतिवेदन) प्रयोग गर्नुपर्छ ।
A53: 2 | B53: यसमा सुरुमा योजनाको नाम, कामको नाम, लागत अनुमानको कुल रकम, खर्च भएको कुल रकम र लागत अनुमानभन्दा घटी वा बढीको प्रतिशत खुलाउनुपर्छ ।
A54: 3 | B54: यस प्रतिवेदन तयार गर्दा यस प्रतिवेदनको मिति, कार्य सुरु भएको मिति, सम्झौता अनुसार काम सम्पन्न गर्नुपर्ने मिति, वास्तविक कार्य स्वीकार भएको मिति, त्रुटी सच्याउनु अविध समाप्त हुने मिति लगायतका विवरण लेख्नुपर्छ ।
A55: 4 | B55: महल १ मा सिलसिलेबार क्रम सङ्ख्या नं. लेख्नुपर्छ ।
A56: 5 | B56: महल २ मा काम वा सेवाको क्रियाकलापको BOQ को आइटम नं. लेख्नुपर्दछ ।
A57: 6 | B57: महल ३ मा कामको विवरण वा नाम लेख्नुपर्छ ।
A58: 7 | B58: महल ४, ५ र ६ मा लागत अनुमानबमोजिमको क्रमशः परिमाण, दर र जम्मा रकम लेख्नुपर्छ ।
A59: 8 | B59: महल ७, ८ र ९ मा भोरिएसनबमोजिम कायम लागत अनुमानबमोजिमको क्रमशः परिमाण, दर र जम्मा रकम लेख्नुपर्छ । उल्लिखित परिमाण र दर भेरिएसन भएको अवस्थामा सोपछि कायम भएको दर र परिमाण सम्झनुपर्दछ ।
A60: 9 | B60: महल १०, ११ र १२ मा खुद (वास्तविक) काम भएको विवरण क्रमशः परिमाण, दर र जम्मा रकम लेख्नुपर्छ ।
A61: 10 | B61: महल १३, १४ र १५ मा शुरु लागत अनुमान (महल ४, ५ र ६) बाट खुद काम भएको (महल १०, ११ र १२) घटाउँदा आउने बाँकी फरक रकम क्रमशः परिमाण, दर र जम्मा रकम लेख्नुपर्छ ।
A62: 11 | B62: महल १६, १७ र १८ मा भेरिएसनपछिको लागत अनुमान र खुद कार्य विचको फरक रकम क्रमशः परिमाण, दर र जम्मा रकम लेख्नुपर्छ ।
A63: 12 | B63: महल १९ मा कुनै कैफियत भएमा सो कैफियत लेख्नुपर्छ ।
A64: 13 | B64: जम्मा हरफमा रकमको कुल जोड जम्मा लेख्नुपर्छ ।
A65: 14 | B65: अनुमान भन्दा घटी वा बढी भएको फरक रकम र सो को प्रतिशत तथा सो को पुस्ट्याइँ समेत राख्नुपर्छ ।
A66: 15 | B66: कार्य स्वीकार प्रतिवेदन तयार गर्ने तथा योजनाको काम स्वीकृत लागत अनुमान, डिजाइन र स्पेसिफिकेसनअनुसार काम भएको छ भनी तयार गर्ने र सिफारिस गर्ने नाम, पद र मिति लेखेर हस्ताक्षर गर्नुपर्छ ।
A67: 16 | B67: स्वीकृत लागत अनुमान, डिजाइन र स्पेसिफिकेसनअनुसार काम भएको वा नभएको बारे स्पष्ट तोकी स्वीकृत गर्नेको नाम, पद र मिति लेखेर हस्ताक्षर राख्नुपर्छ ।

Sheet How To Use
A1: 1 | B1: This is macro enabled worksheet. So, sometimes it can be tricky to open.
A2: 2 | B2: It won't work if you save this file as .xls or .xlsx.
A3: 3 | B3: To use this file, you must first right click on excel file and go to properties and put a tick mark before the "Unblock" option. See video here:
B5: https://www.youtube.com/watch?v=hAuATJkx29Q
A6: 4 | B6: You might encounter other problems too. For solution, search in YouTube.
A7: 5 | B7: If you want these sheets and your bills to be in the same file, open this file as well as the bill you are working on.
B9: i. Open this fill as well as the bill you are working on.
B10: ii. Insert a new extra sheet in the bill you are working on.
B11: iii. Select all the sheets except the new extra sheet that you have inserted just now.
B12: iv. Right click on the selected sheet tabs and click on "Move or copy".
B13: v. In the "To Book", select the name of this file. (This file must be open.)
B14: vi. Click on OK.
B15: vii. Now you have the bill and price adjustment sheets on the same file.
A16: 6 | B16: This file can be downloaded from
B17: http://idoparwat.gandaki.gov.np | E17: Search for the file under Downloads > Formats > Sample Bill.
B19: Prepared By: Arjun Sharma, Engineer, Infrastructure Development Office, Parbat
B20: Share this file with your friends. They might find it helpful.
B21: Reach me at my office's email address if you have some suggestions.
B22: Look for the email address in my office's website.

Sheet Indices
A1: Month | B1: Machinery and Equipment (Base Year : 2017/18 = 100) | C1: Transport, Equipments and Parts (Base Year : 2017/18 = 100) | D1: Construction Material (Base Year : 2017/18 = 100) | E1: Construction Labourer (Base Year : 2004/05 = 100) | F1: Construction Labourer (Base Year : 2023/24 = 100) | G1: Remarks
A2: 30 days prior to intended date of completion not reached | B2: Not Applicable | C2: Not Applicable | D2: Not Applicable | E2: Not Applicable
A3: 2017 Jul/Aug | B3: 99.17482039 | C3: 100.3126742 | D3: 94.16448196 | E3: 411.7 | I3: Calculation of Index for Construction Labourer (As the Base Year was changed from 2004/05 to 2023/24)
A4: 2017 Aug/Sep | B4: 99.17482039 | C4: 100.3126742 | D4: 94.16448196 | E4: 411.7 | I4: Index of 2023/24 taking base year 2023/24 | J4: 100
A5: 2017 Sep/Oct | B5: 99.17482039 | C5: 100.3126742 | D5: 94.05932091 | E5: 416.1 | I5: Average index of 2023/24 taking base year 2004/05 | J5: =AVERAGE(592.290478979484, 592.290478979484, 592.290478979484, 592.290478979484, 592.290478979484, 592.290478979484, 592.290478979484, 592.290478979484, 592.290478979484, 592.82, 592.82445308174, 592.82445308174) -> 592.4236014
A6: 2017 Oct/Nov | B6: 99.53192498 | C6: 99.09131527 | D6: 94.96638241 | E6: 416.1 | I6: Multiplication coefficient to convert new coefficient based on year 2023/24 to base year 2004/05 | J6: =J5/J4 -> 5.924236014
A7: 2017 Nov/Dec | B7: 99.53192498 | C7: 99.09131527 | D7: 96.20844767 | E7: 416.1
A8: 2017 Dec/Jan | B8: 99.53192498 | C8: 99.09131527 | D8: 98.14824226 | E8: 417.2 | I8: Example Conversion:
A9: 2018 Jan/Feb | B9: 100.642278 | C9: 99.09131527 | D9: 101.8415698 | E9: 424.7 | I9: Salary and Wage Rate Index by NSIC (Construction) for 2024/25 Sep/Oct (Provisional): | J9: 102.0938339
A10: 2018 Feb/Mar | B10: 100.642278 | C10: 99.09131527 | D10: 102.8551478 | E10: 437.4 | I10: ="Converting it to base year 2004/05 by multiplying above value by "&J6 -> Converting it to base year 2004/05 by multiplying above value by 5.92423601414903 | J10: =J9*J6 -> 604.8279678
A11: 2018 Mar/Apr | B11: 100.642278 | C11: 99.09131527 | D11: 102.9277749 | E11: 437.9
A12: 2018 Apr/May | B12: 100.6509767 | C12: 101.5046953 | D12: 105.9168391 | E12: 443 | I12: Prepared By: Arjun Sharma, Engineer, Infrastructure Development Office, Parbat
A13: 2018 May/Jun | B13: 100.6509767 | C13: 101.5046953 | D13: 106.5838893 | E13: 443 | I13: Feel free to share to your friends.
A14: 2018 Jun/Jul | B14: 100.6509767 | C14: 101.5046953 | D14: 108.163422 | E14: 445.9
A15: 2018 Jul/Aug | B15: 102.384895 | C15: 108.75661 | D15: 107.93351 | E15: 451.3
A16: 2018 Aug/Sep | B16: 102.384895 | C16: 108.75661 | D16: 108.40721 | E16: 451.3
A17: 2018 Sep/Oct | B17: 102.384895 | C17: 108.75661 | D17: 108.465515 | E17: 456.8
A18: 2018 Oct/Nov | B18: 104.11819 | C18: 113.04262 | D18: 107.98721 | E18: 464.6
A19: 2018 Nov/Dec | B19: 104.11819 | C19: 113.04262 | D19: 107.89727 | E19: 464.9
A20: 2018 Dec/Jan | B20: 104.11819 | C20: 113.04262 | D20: 107.89023 | E20: 464.9
A21: 2019 Jan/Feb | B21: 104.40072 | C21: 113.66679 | D21: 107.10903 | E21: 474.7
A22: 2019 Feb/Mar | B22: 104.40072 | C22: 113.66679 | D22: 107.217766 | E22: 474.7
A23: 2019 Mar/Apr | B23: 104.40072 | C23: 113.66679 | D23: 107.16932 | E23: 476.3
A24: 2019 Apr/May | B24: 104.49441 | C24: 113.72093 | D24: 108.4 | E24: 476.3
A25: 2019 May/Jun | B25: 104.49441 | C25: 113.72093 | D25: 108.51526 | E25: 476.6
A26: 2019 Jun/Jul | B26: 104.49441 | C26: 113.72093 | D26: 108.67067 | E26: 476.6
A27: 2019 Jul/Aug | B27: 107.11339 | C27: 118.47856 | D27: 106.58742 | E27: 494.8300809
A28: 2019 Aug/Sep | B28: 107.11339 | C28: 118.47856 | D28: 105.98266 | E28: 495.3
A29: 2019 Sep/Oct | B29: 107.11339 | C29: 118.47856 | D29: 105.850006 | E29: 495.3
A30: 2019 Oct/Nov | B30: 107.387505 | C30: 118.1405 | D30: 104.74215 | E30: 500
A31: 2019 Nov/Dec | B31: 107.387505 | C31: 118.1405 | D31: 102.328766 | E31: 500.8381542
A32: 2019 Dec/Jan | B32: 107.387505 | C32: 118.1405 | D32: 102.426025 | E32: 500.8381542
A33: 2020 Jan/Feb | B33: 107.676216 | C33: 118.26883 | D33: 102.93785 | E33: 500.8381542
A34: 2020 Feb/Mar | B34: 107.676216 | C34: 118.26883 | D34: 103.13581 | E34: 500.8381542
A35: 2020 Mar/Apr | B35: 107.676216 | C35: 118.26883 | D35: 103.13581 | E35: 500.8381542
A36: 2020 Apr/May | B36: 107.739975 | C36: 118.31409 | D36: 102.75022 | E36: 500.8381542
A37: 2020 May/Jun | B37: 107.739975 | C37: 118.31409 | D37: 103.44945 | E37: 495.9686549
A38: 2020 Jun/Jul | B38: 107.739975 | C38: 118.31409 | D38: 102.49837 | E38: 495.9686549
A39: 2020 Jul/Aug | B39: 112.19695 | C39: 121.68256 | D39: 104.10543 | E39: 499.0685529
A40: 2020 Aug/Sep | B40: 112.19695 | C40: 121.68256 | D40: 103.72685 | E40: 498.8113767
A41: 2020 Sep/Oct | B41: 112.19695 | C41: 121.68256 | D41: 103.59052 | E41: 498.8113767
A42: 2020 Oct/Nov | B42: 112.74575 | C42: 123.893394 | D42: 104.547195 | E42: 498.8113767
A43: 2020 Nov/Dec | B43: 112.74575 | C43: 123.893394 | D43: 105.03371 | E43: 500.9684406
A44: 2020 Dec/Jan | B44: 112.74575 | C44: 123.893394 | D44: 107.12129 | E44: 509.0935099
A45: 2021 Jan/Feb | B45: 113.512 | C45: 124.61403 | D45: 109.3722 | E45: 511.9603347
A46: 2021 Feb/Mar | B46: 113.512 | C46: 124.61403 | D46: 108.2065 | E46: 514.5254781
A47: 2021 Mar/Apr | B47: 113.512 | C47: 124.61403 | D47: 109.27761 | E47: 514.5254781
A48: 2021 Apr/May | B48: 113.68747 | C48: 124.67256 | D48: 111.41915 | E48: 514.5254781
A49: 2021 May/Jun | B49: 113.68747 | C49: 124.67256 | D49: 111.89505 | E49: 515.847064
A50: 2021 Jun/Jul | B50: 113.68747 | C50: 124.67256 | D50: 114.13984 | E50: 521.9652806
A51: 2021 Jul/Aug | B51: 120.54096 | C51: 133.48738 | D51: 116.11561 | E51: 523.7469003
A52: 2021 Aug/Sep | B52: 120.54096 | C52: 133.48738 | D52: 116.20729 | E52: 523.7469003
A53: 2021 Sep/Oct | B53: 120.54096 | C53: 133.48738 | D53: 116.35791 | E53: 523.7469003
A54: 2021 Oct/Nov | B54: 122.78874 | C54: 133.53423 | D54: 125.55852 | E54: 524.6380429
A55: 2021 Nov/Dec | B55: 122.78874 | C55: 133.53423 | D55: 125.35019 | E55: 526.8947436
A56: 2021 Dec/Jan | B56: 122.78874 | C56: 133.53423 | D56: 125.87631 | E56: 526.8947436
A57: 2022 Jan/Feb | B57: 122.931854 | C57: 134.86948 | D57: 127.536804 | E57: 526.8947436
A58: 2022 Feb/Mar | B58: 122.931854 | C58: 134.86948 | D58: 134.43776 | E58: 533.1023591
A59: 2022 Mar/Apr | B59: 122.931854 | C59: 134.86948 | D59: 136.83524 | E59: 541.7660889
A60: 2022 Apr/May | B60: 124.46802 | C60: 138.37277 | D60: 141.30508 | E60: 541.8185328
A61: 2022 May/Jun | B61: 124.46802 | C61: 138.37277 | D61: 140.15343 | E61: 541.8185328
A62: 2022 Jun/Jul | B62: 124.46802 | C62: 138.37277 | D62: 137.81296 | E62: 550.4427396
A63: 2022 Jul/Aug | B63: 130.104 | C63: 143.53903 | D63: 138.59886 | E63: 571.0425918
A64: 2022 Aug/Sep | B64: 130.104 | C64: 143.53903 | D64: 138.70862 | E64: 572.5602013
A65: 2022 Sep/Oct | B65: 130.104 | C65: 143.53903 | D65: 138.77884 | E65: 572.5602013
A66: 2022 Oct/Nov | B66: 130.25603 | C66: 143.53903 | D66: 140.49205 | E66: 572.5602013
A67: 2022 Nov/Dec | B67: 130.25603 | C67: 143.53903 | D67: 138.52576 | E67: 572.5602013
A68: 2022 Dec/Jan | B68: 130.25603 | C68: 143.53903 | D68: 139.30699 | E68: 572.5602013
A69: 2023 Jan/Feb | B69: 132.56921 | C69: 144.41847 | D69: 142.93492 | E69: 572.5602013
A70: 2023 Feb/Mar | B70: 132.56921 | C70: 144.41847 | D70: 143.28242 | E70: 572.5602013
A71: 2023 Mar/Apr | B71: 132.56921 | C71: 144.41847 | D71: 145.2343 | E71: 576.5397596
A72: 2023 Apr/May | B72: 133.0308 | C72: 144.69983 | D72: 145.09305 | E72: 582.0834029
A73: 2023 May/Jun | B73: 133.0308 | C73: 144.69983 | D73: 141.61176 | E73: 587.1214485
A74: 2023 Jun/Jul | B74: 133.0308 | C74: 144.69983 | D74: 141.51938 | E74: 587.1214485
A75: 2023 Jul/Aug | B75: 136.17882 | C75: 146.67479 | D75: 138.53404 | E75: 592.290479
A76: 2023 Aug/Sep | B76: 136.17882 | C76: 146.67479 | D76: 138.66414 | E76: 592.290479
A77: 2023 Sep/Oct | B77: 136.17882 | C77: 146.67479 | D77: 138.31232 | E77: 592.290479
A78: 2023 Oct/Nov | B78: 136.22429 | C78: 147.3124 | D78: 139.01846 | E78: 592.290479
A79: 2023 Nov/Dec | B79: 136.22429 | C79: 147.3124 | D79: 137.61363 | E79: 592.290479
A80: 2023 Dec/Jan | B80: 136.22429 | C80: 147.3124 | D80: 137.80154 | E80: 592.290479
A81: 2024 Jan/Feb | B81: 136.46172 | C81: 147.3124 | D81: 135.33298 | E81: 592.290479
A82: 2024 Feb/Mar | B82: 136.46172 | C82: 147.3124 | D82: 135.1286 | E82: 592.290479
A83: 2024 Mar/Apr | B83: 136.46172 | C83: 147.3124 | D83: 134.77957 | E83: 592.290479
A84: 2024 Apr/May | B84: 136.72 | C84: 147.31 | D84: 137.05 | E84: 592.82
A85: 2024 May/Jun | B85: 136.71912 | C85: 147.3124 | D85: 138.60736 | E85: 592.8244531
A86: 2024 Jun/Jul | B86: 136.71912 | C86: 147.3124 | D86: 138.07658 | E86: 592.8244531
A87: 2024 Jul/Aug | B87: 138.1505 | C87: 151.90479 | D87: 132.70518 | E87: =IF(F87="Not published",F87,F87*J$6) -> 604.8279678 | F87: 102.0938339 | G87: Provisional
A88: 2024 Aug/Sep | B88: 138.1505 | C88: 151.90479 | D88: 132.81482 | E88: 604.8279678 | F88: 102.0938339 | G88: Provisional
A89: 2024 Sep/Oct | B89: 138.1505 | C89: 151.90479 | D89: 131.97256 | E89: 604.8279678 | F89: 102.0938339 | G89: Provisional
A90: 2024 Oct/Nov | B90: 138.1802 | C90: 151.90479 | D90: 132.59389 | E90: 605.298166 | F90: 102.1732025 | G90: Provisional
A91: 2024 Nov/Dec | B91: 138.1802 | C91: 151.90479 | D91: 131.92247 | E91: 605.298166 | F91: 102.1732025 | G91: Provisional
A92: 2024 Dec/Jan | B92: 138.1802 | C92: 151.90479 | D92: 131.8995 | E92: =IF(F92="Not published",F92,F92*J$6) -> 605.298166 | F92: 102.1732025 | G92: Provisional
A93: 2025 Jan/Feb | B93: Not published | C93: Not published | D93: Not published | E93: Not published | F93: Not published
A94: 2025 Feb/Mar | B94: Not published | C94: Not published | D94: Not published | E94: Not published | F94: Not published
A95: 2025 Mar/Apr | B95: Not published | C95: Not published | D95: Not published | E95: Not published | F95: Not published
A96: 2025 Apr/May | B96: Not published | C96: Not published | D96: Not published | E96: Not published | F96: Not published
A97: 2025 May/Jun | B97: Not published | C97: Not published | D97: Not published | E97: Not published | F97: Not published
A98: 2025 Jun/Jul | B98: Not published | C98: Not published | D98: Not published | E98: Not published | F98: Not published
A99: 2025 Jul/Aug | B99: Not published | C99: Not published | D99: Not published | E99: Not published | F99: Not published
A100: 2025 Aug/Sep | B100: Not published | C100: Not published | D100: Not published | E100: Not published | F100: Not published
A101: 2025 Sep/Oct | B101: Not published | C101: Not published | D101: Not published | E101: Not published | F101: Not published
A102: 2025 Oct/Nov | B102: Not published | C102: Not published | D102: Not published | E102: Not published | F102: Not published
A103: 2025 Nov/Dec | B103: Not published | C103: Not published | D103: Not published | E103: Not published | F103: Not published
A104: 2025 Dec/Jan | B104: Not published | C104: Not published | D104: Not published | E104: Not published | F104: Not published
A105: 2026 Jan/Feb | B105: Not published | C105: Not published | D105: Not published | E105: Not published | F105: Not published
